[Event "Live Chess"]
[Site "Chess.com"]
[Date "2024.06.01"]
[Round "-"]
[White "AlexanderMatlak"]
[Black "toog"]
[Result "1/2-1/2"]
[WhiteElo "2394"]
[BlackElo "2607"]
[TimeControl "300"]
[EndTime "15:34:27 PDT"]
[Termination "Game drawn by repetition"]

1. c4 {[%clk 0:04:56.7]} 1... c5 {[%clk 0:04:57.5]} 2. Nf3 {[%clk 0:04:53.2]}
2... Nc6 {[%clk 0:04:55.3]} 3. Nc3 {[%clk 0:04:52.6]} 3... Nf6 {[%clk
0:04:53.5]} 4. g3 {[%clk 0:04:51.9]} 4... d6 {[%clk 0:04:51.6]} 5. Bg2 {[%clk
0:04:51.1]} 5... Bd7 {[%clk 0:04:50.9]} 6. O-O {[%clk 0:04:50.3]} 6... Qc8
{[%clk 0:04:50.3]} 7. Re1 {[%clk 0:04:49.7]} 7... Bh3 {[%clk 0:04:48.1]} 8. Bh1
{[%clk 0:04:49]} 8... h5 {[%clk 0:04:47.4]} 9. Nd5 {[%clk 0:04:44.9]} 9... h4
{[%clk 0:04:44]} 10. d3 {[%clk 0:04:41.7]} 10... hxg3 {[%clk 0:04:38.1]} 11.
fxg3 {[%clk 0:04:41.6]} 11... Nxd5 {[%clk 0:04:23.5]} 12. cxd5 {[%clk
0:04:41.5]} 12... Nd4 {[%clk 0:04:22.8]} 13. Nxd4 {[%clk 0:04:37.6]} 13... cxd4
{[%clk 0:04:22.7]} 14. Qa4+ {[%clk 0:04:35.6]} 14... Qd7 {[%clk 0:04:18.2]} 15.
Qxd4 {[%clk 0:04:33]} 15... Rc8 {[%clk 0:04:09.9]} 16. Be3 {[%clk 0:04:31.1]}
16... b6 {[%clk 0:03:58.2]} 17. Rac1 {[%clk 0:04:28.1]} 17... Qb7 {[%clk
0:03:16]} 18. Rc6 {[%clk 0:04:21]} 18... Bd7 {[%clk 0:03:14.2]} 19. Rxc8+ {[%clk
0:04:16.4]} 19... Qxc8 {[%clk 0:03:10]} 20. Rc1 {[%clk 0:04:13.3]} 20... Qa6
{[%clk 0:03:08.8]} 21. Qc4 {[%clk 0:03:58.6]} 21... Qxc4 {[%clk 0:03:03.9]} 22.
dxc4 {[%clk 0:03:58.5]} 22... g6 {[%clk 0:03:02.9]} 23. b4 {[%clk 0:03:52.4]}
23... Bg7 {[%clk 0:02:57.4]} 24. c5 {[%clk 0:03:45.5]} 24... bxc5 {[%clk
0:02:56.1]} 25. bxc5 {[%clk 0:03:45.4]} 25... dxc5 {[%clk 0:02:55.6]} 26. Rxc5
{[%clk 0:03:40.6]} 26... O-O {[%clk 0:02:50.1]} 27. Rc7 {[%clk 0:03:37]} 27...
Bb5 {[%clk 0:02:47.6]} 28. Kf2 {[%clk 0:03:31]} 28... a6 {[%clk 0:02:36]} 29.
Rxe7 {[%clk 0:03:25.2]} 29... Rd8 {[%clk 0:02:30.9]} 30. Rb7 {[%clk 0:02:39.8]}
30... Bc4 {[%clk 0:02:27]} 31. Bb6 {[%clk 0:02:16.5]} 31... Re8 {[%clk
0:02:18.6]} 32. e4 {[%clk 0:02:13.1]} 32... Bxa2 {[%clk 0:02:15.3]} 33. Bf3
{[%clk 0:02:06]} 33... Be5 {[%clk 0:02:10.3]} 34. Bc7 {[%clk 0:01:59.7]} 34...
Bxc7 {[%clk 0:01:57.2]} 35. Rxc7 {[%clk 0:01:57.5]} 35... Bb3 {[%clk 0:01:56.8]}
36. Ra7 {[%clk 0:01:54.8]} 36... Bc4 {[%clk 0:01:53]} 37. Ke3 {[%clk 0:01:51.7]}
37... Bxd5 {[%clk 0:01:50.1]} 38. Kd4 {[%clk 0:01:51]} 38... Be6 {[%clk
0:01:47.4]} 39. Rxa6 {[%clk 0:01:47]} 39... Kg7 {[%clk 0:01:41.9]} 40. Ra7
{[%clk 0:01:40.7]} 40... Rh8 {[%clk 0:01:36.6]} 41. h4 {[%clk 0:01:39.1]} 41...
Rb8 {[%clk 0:01:33.5]} 42. Ke3 {[%clk 0:01:37.5]} 42... Kf6 {[%clk 0:01:31.7]}
43. Kf4 {[%clk 0:01:35.5]} 43... Rb4 {[%clk 0:01:29.7]} 44. g4 {[%clk 0:01:27]}
44... Kg7 {[%clk 0:01:27.3]} 45. g5 {[%clk 0:01:20.3]} 45... Rb2 {[%clk
0:01:24.1]} 46. h5 {[%clk 0:01:14.9]} 46... gxh5 {[%clk 0:01:22.7]} 47. Bxh5
{[%clk 0:01:14.8]} 47... Rf2+ {[%clk 0:01:20.8]} 48. Bf3 {[%clk 0:01:11.1]}
48... Rf1 {[%clk 0:01:17.9]} 49. Ke3 {[%clk 0:01:06.1]} 49... Kg6 {[%clk
0:01:12.7]} 50. Ra5 {[%clk 0:01:02.2]} 50... Rg1 {[%clk 0:01:10.8]} 51. Kf4
{[%clk 0:01:00.8]} 51... Rf1 {[%clk 0:01:10]} 52. Ke3 {[%clk 0:01:00]} 52... Bb3
{[%clk 0:01:06.2]} 53. Bg4 {[%clk 0:00:51.9]} 53... Bc4 {[%clk 0:00:59.6]} 54.
Bf5+ {[%clk 0:00:50.1]} 54... Kg7 {[%clk 0:00:54.8]} 55. Ra7 {[%clk 0:00:48.2]}
55... Bb3 {[%clk 0:00:51.6]} 56. g6 {[%clk 0:00:46.1]} 56... Kg8 {[%clk
0:00:44.1]} 57. gxf7+ {[%clk 0:00:43.9]} 57... Bxf7 {[%clk 0:00:44]} 58. Kd4
{[%clk 0:00:42.5]} 58... Rb1 {[%clk 0:00:37.3]} 59. Ke5 {[%clk 0:00:40.9]} 59...
Rb5+ {[%clk 0:00:35.2]} 60. Kf6 {[%clk 0:00:39.2]} 60... Rb6+ {[%clk 0:00:34.2]}
61. Kg5 {[%clk 0:00:38.6]} 61... Kf8 {[%clk 0:00:30.7]} 62. e5 {[%clk
0:00:30.8]} 62... Rc6 {[%clk 0:00:29.9]} 63. Ra8+ {[%clk 0:00:22]} 63... Ke7
{[%clk 0:00:28.6]} 64. Ra7+ {[%clk 0:00:21.2]} 64... Kf8 {[%clk 0:00:27.9]} 65.
Ra8+ {[%clk 0:00:20.7]} 65... Ke7 {[%clk 0:00:27.3]} 66. Ra7+ {[%clk 0:00:20.1]}
66... Kf8 {[%clk 0:00:24.8]} 1/2-1/2

[Event "Live Chess"]
[Site "Chess.com"]
[Date "2024.06.01"]
[Round "-"]
[White "Dhaydon19"]
[Black "NeilDruggan73"]
[Result "1-0"]
[WhiteElo "2679"]
[BlackElo "1745"]
[TimeControl "300"]
[EndTime "15:34:47 PDT"]
[Termination "Dhaydon19 won by checkmate"]

1. e4 {[%clk 0:04:57.7]} 1... d6 {[%clk 0:04:56]} 2. Nf3 {[%clk 0:04:57]} 2...
Nf6 {[%clk 0:04:51.1]} 3. Nc3 {[%clk 0:04:54.8]} 3... g6 {[%clk 0:04:50]} 4. d4
{[%clk 0:04:51]} 4... Bg7 {[%clk 0:04:48.7]} 5. h3 {[%clk 0:04:50.1]} 5... c6
{[%clk 0:04:40.1]} 6. Bc4 {[%clk 0:04:47.4]} 6... b5 {[%clk 0:04:36.2]} 7. Bd3
{[%clk 0:04:45.5]} 7... b4 {[%clk 0:04:29.5]} 8. Ne2 {[%clk 0:04:42.9]} 8... O-O
{[%clk 0:04:19.9]} 9. O-O {[%clk 0:04:40.8]} 9... Qc7 {[%clk 0:04:12.4]} 10. Bf4
{[%clk 0:04:36.5]} 10... Nh5 {[%clk 0:03:49.8]} 11. Bh2 {[%clk 0:04:33.7]} 11...
Qd8 {[%clk 0:03:23.5]} 12. a3 {[%clk 0:04:30.6]} 12... c5 {[%clk 0:03:12.1]} 13.
axb4 {[%clk 0:04:20.5]} 13... cxb4 {[%clk 0:03:09]} 14. e5 {[%clk 0:04:19.5]}
14... d5 {[%clk 0:02:51.8]} 15. g4 {[%clk 0:04:16.3]} 15... Kh8 {[%clk
0:02:39.6]} 16. gxh5 {[%clk 0:04:13.7]} 16... Bxh3 {[%clk 0:02:39]} 17. Nf4
{[%clk 0:04:07.3]} 17... Qd7 {[%clk 0:02:34.3]} 18. Nxh3 {[%clk 0:04:04.9]}
18... Qxh3 {[%clk 0:02:32.4]} 19. Ng5 {[%clk 0:04:00]} 19... Qh4 {[%clk
0:02:26.5]} 20. f4 {[%clk 0:03:59]} 20... f6 {[%clk 0:02:24]} 21. Ne6 {[%clk
0:03:55.8]} 21... gxh5 {[%clk 0:02:18.2]} 22. Nxf8 {[%clk 0:03:53.8]} 22... Bxf8
{[%clk 0:02:16.6]} 23. Qf3 {[%clk 0:03:52.9]} 23... Nc6 {[%clk 0:02:11.9]} 24.
Qxd5 {[%clk 0:03:50.3]} 24... Bh6 {[%clk 0:02:08.8]} 25. Kh1 {[%clk 0:03:47.7]}
25... Rg8 {[%clk 0:02:01.3]} 26. Rg1 {[%clk 0:03:45.3]} 26... Rg7 {[%clk
0:01:40.5]} 27. Rxg7 {[%clk 0:03:41.7]} 27... Bxg7 {[%clk 0:01:39.3]} 28. Qxc6
{[%clk 0:03:37.6]} 28... h6 {[%clk 0:01:38.3]} 29. Qe8+ {[%clk 0:03:35.8]} 29...
Bf8 {[%clk 0:01:29.7]} 30. Qxf8# {[%clk 0:03:34.1]} 1-0

[Event "Live Chess"]
[Site "Chess.com"]
[Date "2024.06.01"]
[Round "-"]
[White "GoldsmanB"]
[Black "Plato_77"]
[Result "1-0"]
[WhiteElo "1109"]
[BlackElo "1302"]
[TimeControl "300"]
[EndTime "15:34:47 PDT"]
[Termination "GoldsmanB won by resignation"]

1. d4 {[%clk 0:04:57.9]} 1... Nf6 {[%clk 0:04:50.3]} 2. c4 {[%clk 0:04:56.1]}
2... d5 {[%clk 0:04:48.7]} 3. e3 {[%clk 0:04:48.5]} 3... e6 {[%clk 0:04:46]} 4.
Nf3 {[%clk 0:04:47.4]} 4... c5 {[%clk 0:04:42.3]} 5. Nc3 {[%clk 0:04:45.6]} 5...
cxd4 {[%clk 0:04:39.6]} 6. Nxd4 {[%clk 0:04:41.5]} 6... Nc6 {[%clk 0:04:37.6]}
7. b3 {[%clk 0:04:39.2]} 7... Bb4 {[%clk 0:04:31.2]} 8. Nxc6 {[%clk 0:04:32.9]}
8... Bxc3+ {[%clk 0:04:28]} 9. Bd2 {[%clk 0:04:23.3]} 9... Bxa1 {[%clk
0:04:24.7]} 10. Nxd8 {[%clk 0:04:20.6]} 10... Kxd8 {[%clk 0:04:14.7]} 11. Qxa1
{[%clk 0:04:18.3]} 11... dxc4 {[%clk 0:04:08.6]} 12. Bxc4 {[%clk 0:04:14.3]}
12... Ke7 {[%clk 0:04:07.1]} 13. Bc3 {[%clk 0:04:13.4]} 13... Rd8 {[%clk
0:04:05]} 14. O-O {[%clk 0:04:11.4]} 14... a6 {[%clk 0:04:00.4]} 15. Bxf6+
{[%clk 0:04:10.1]} 15... gxf6 {[%clk 0:03:58.5]} 16. Rd1 {[%clk 0:04:09.2]}
16... b5 {[%clk 0:03:54.6]} 17. Rxd8 {[%clk 0:04:07.2]} 17... Kxd8 {[%clk
0:03:53.1]} 18. Qd4+ {[%clk 0:04:02.9]} 18... Ke7 {[%clk 0:03:51.6]} 19. Be2
{[%clk 0:03:58.6]} 19... Bb7 {[%clk 0:03:49.3]} 20. Qc5+ {[%clk 0:03:56.8]}
20... Ke8 {[%clk 0:03:46.3]} 21. Qh5 {[%clk 0:03:55.3]} 21... Rc8 {[%clk
0:03:42.4]} 22. h3 {[%clk 0:03:50.3]} 22... Rc1+ {[%clk 0:03:39.7]} 23. Kh2
{[%clk 0:03:49.3]} 23... Rc2 {[%clk 0:03:33.8]} 24. Bf3 {[%clk 0:03:46.8]} 24...
Bxf3 {[%clk 0:03:30.4]} 25. Qxf3 {[%clk 0:03:43.8]} 25... Rxa2 {[%clk
0:03:29.3]} 26. Qxf6 {[%clk 0:03:41.6]} 26... a5 {[%clk 0:03:23.5]} 27. Qc3
{[%clk 0:03:39]} 27... a4 {[%clk 0:03:18]} 28. bxa4 {[%clk 0:03:36.7]} 28...
bxa4 {[%clk 0:03:17.9]} 29. Qc6+ {[%clk 0:03:34.7]} 29... Ke7 {[%clk 0:03:12.8]}
30. Qc7+ {[%clk 0:03:30]} 30... Kf6 {[%clk 0:03:09.3]} 31. Qf4+ {[%clk
0:03:29.1]} 31... Kg7 {[%clk 0:03:04.6]} 32. Qg5+ {[%clk 0:03:28]} 32... Kf8
{[%clk 0:03:00.6]} 33. Qh6+ {[%clk 0:03:26.8]} 33... Ke7 {[%clk 0:02:58]} 34.
Qxh7 {[%clk 0:03:24.9]} 34... Rxf2 {[%clk 0:02:56.2]} 35. Qh4+ {[%clk
0:03:20.5]} 1-0

[Event "Live Chess"]
[Site "Chess.com"]
[Date "2024.06.01"]
[Round "-"]
[White "updatedopenings2024"]
[Black "TheSmoulderingMaster"]
[Result "1-0"]
[WhiteElo "1969"]
[BlackElo "1733"]
[TimeControl "300"]
[EndTime "15:34:52 PDT"]
[Termination "updatedopenings2024 won by resignation"]

1. e4 {[%clk 0:04:59.2]} 1... c5 {[%clk 0:04:58.7]} 2. Nc3 {[%clk 0:04:57.9]}
2... Nc6 {[%clk 0:04:57.3]} 3. f4 {[%clk 0:04:57.8]} 3... e6 {[%clk 0:04:56.3]}
4. Nf3 {[%clk 0:04:57.7]} 4... Nge7 {[%clk 0:04:55]} 5. d4 {[%clk 0:04:57]} 5...
cxd4 {[%clk 0:04:51.7]} 6. Nxd4 {[%clk 0:04:56.9]} 6... g6 {[%clk 0:04:50.2]} 7.
Be3 {[%clk 0:04:55.2]} 7... Bg7 {[%clk 0:04:49.1]} 8. Be2 {[%clk 0:04:53.7]}
8... O-O {[%clk 0:04:47.8]} 9. Qd2 {[%clk 0:04:51.8]} 9... d5 {[%clk 0:04:46.8]}
10. e5 {[%clk 0:04:48.1]} 10... f6 {[%clk 0:04:42.3]} 11. exf6 {[%clk
0:04:46.2]} 11... Bxf6 {[%clk 0:04:41.2]} 12. O-O-O {[%clk 0:04:45.6]} 12... Bd7
{[%clk 0:04:37.7]} 13. g4 {[%clk 0:04:44.3]} 13... Bg7 {[%clk 0:04:35]} 14. h4
{[%clk 0:04:43.6]} 14... Rc8 {[%clk 0:04:31.1]} 15. h5 {[%clk 0:04:42.6]} 15...
Qa5 {[%clk 0:04:29.5]} 16. Kb1 {[%clk 0:04:37.9]} 16... Nb4 {[%clk 0:04:27.2]}
17. a3 {[%clk 0:04:26.4]} 17... Nbc6 {[%clk 0:04:16.8]} 18. hxg6 {[%clk
0:04:19.7]} 18... hxg6 {[%clk 0:04:15.1]} 19. g5 {[%clk 0:04:08.7]} 19... Nf5
{[%clk 0:04:13.1]} 20. Nxf5 {[%clk 0:04:06]} 20... Rxf5 {[%clk 0:04:12.3]} 21.
Bd3 {[%clk 0:04:03.9]} 21... Rff8 {[%clk 0:04:11]} 22. Bxg6 {[%clk 0:04:02.8]}
22... e5 {[%clk 0:04:04]} 23. Qh2 {[%clk 0:04:00.9]} 23... Rxf4 {[%clk
0:03:55.1]} 24. Bxf4 {[%clk 0:03:54.3]} 24... exf4 {[%clk 0:03:54.4]} 25. Qh7+
{[%clk 0:03:52.6]} 25... Kf8 {[%clk 0:03:53.5]} 26. Rhf1 {[%clk 0:03:40]} 26...
Qc7 {[%clk 0:03:39.7]} 27. Nxd5 {[%clk 0:03:37.4]} 27... Qe5 {[%clk 0:03:38.5]}
28. Rxf4+ {[%clk 0:03:34.8]} 1-0

[Event "Live Chess"]
[Site "Chess.com"]
[Date "2024.06.01"]
[Round "-"]
[White "jimwad"]
[Black "ShanthamGrarks"]
[Result "0-1"]
[WhiteElo "1304"]
[BlackElo "1802"]
[TimeControl "300"]
[EndTime "15:35:03 PDT"]
[Termination "ShanthamGrarks won on time"]

1. d4 {[%clk 0:04:58.4]} 1... e6 {[%clk 0:04:52.6]} 2. e4 {[%clk 0:04:56.9]}
2... d5 {[%clk 0:04:48.3]} 3. e5 {[%clk 0:04:55.1]} 3... c5 {[%clk 0:04:44.9]}
4. c3 {[%clk 0:04:53]} 4... Nc6 {[%clk 0:04:37.5]} 5. Nf3 {[%clk 0:04:49.5]}
5... h6 {[%clk 0:04:34.7]} 6. Be3 {[%clk 0:04:47.3]} 6... cxd4 {[%clk
0:04:30.1]} 7. cxd4 {[%clk 0:04:43.1]} 7... Qb6 {[%clk 0:04:29.1]} 8. Qd2 {[%clk
0:04:39.7]} 8... Bb4 {[%clk 0:04:24.8]} 9. Nc3 {[%clk 0:04:37.8]} 9... Bd7
{[%clk 0:04:23.6]} 10. Be2 {[%clk 0:04:34.7]} 10... Rc8 {[%clk 0:04:22.4]} 11.
O-O {[%clk 0:04:33.2]} 11... Na5 {[%clk 0:04:18.9]} 12. Rac1 {[%clk 0:04:28.6]}
12... Nc4 {[%clk 0:04:17.4]} 13. Bxc4 {[%clk 0:04:26.9]} 13... Rxc4 {[%clk
0:04:15.8]} 14. a3 {[%clk 0:04:21.1]} 14... Bxc3 {[%clk 0:04:05.4]} 15. bxc3
{[%clk 0:04:18.6]} 15... Ne7 {[%clk 0:04:01.3]} 16. Rb1 {[%clk 0:04:13.3]} 16...
Qa6 {[%clk 0:03:53.9]} 17. Rfc1 {[%clk 0:04:10.8]} 17... Nf5 {[%clk 0:03:39.3]}
18. Qb2 {[%clk 0:03:57.2]} 18... b6 {[%clk 0:03:29.4]} 19. Bd2 {[%clk
0:03:53.1]} 19... O-O {[%clk 0:03:21.7]} 20. h3 {[%clk 0:03:37.2]} 20... Rfc8
{[%clk 0:03:18.6]} 21. g4 {[%clk 0:03:01.1]} 21... Ne7 {[%clk 0:03:08.9]} 22.
Be3 {[%clk 0:02:54.1]} 22... Ra4 {[%clk 0:02:42.1]} 23. Ra1 {[%clk 0:02:52.1]}
23... Qd3 {[%clk 0:02:35.5]} 24. Qd2 {[%clk 0:02:35.9]} 24... Qe4 {[%clk
0:02:32.2]} 25. Nh2 {[%clk 0:02:22.3]} 25... h5 {[%clk 0:02:13.4]} 26. f3 {[%clk
0:02:21]} 26... Qg6 {[%clk 0:02:11]} 27. Kf2 {[%clk 0:02:02.2]} 27... h4 {[%clk
0:02:08.1]} 28. Bg5 {[%clk 0:01:52.2]} 28... Nc6 {[%clk 0:01:54.2]} 29. Bxh4
{[%clk 0:01:48.5]} 29... Na5 {[%clk 0:01:48.9]} 30. Qb2 {[%clk 0:01:17]} 30...
Nc4 {[%clk 0:01:44]} 31. Qc2 {[%clk 0:01:12.9]} 31... Qh6 {[%clk 0:01:35.7]} 32.
Bg3 {[%clk 0:00:56.9]} 32... Qe3+ {[%clk 0:01:33]} 33. Kg2 {[%clk 0:00:53.6]}
33... Qh6 {[%clk 0:01:27]} 34. f4 {[%clk 0:00:50.9]} 34... Ne3+ {[%clk
0:01:25.7]} 35. Kf3 {[%clk 0:00:43]} 35... Nxc2 {[%clk 0:01:25]} 36. Rxc2 {[%clk
0:00:42.2]} 36... Qg6 {[%clk 0:01:19.2]} 37. Rcc1 {[%clk 0:00:30.2]} 37... Qe4+
{[%clk 0:01:15.7]} 38. Kf2 {[%clk 0:00:28.9]} 38... Bb5 {[%clk 0:01:11.4]} 39.
Re1 {[%clk 0:00:21.7]} 39... Qc2+ {[%clk 0:01:09.8]} 40. Kg1 {[%clk 0:00:18.8]}
40... Rxc3 {[%clk 0:01:06.6]} 41. Bf2 {[%clk 0:00:15]} 41... Rg3+ {[%clk
0:01:05.3]} 42. Bxg3 {[%clk 0:00:13.3]} 42... Bd3 {[%clk 0:01:00.9]} 43. Rac1
{[%clk 0:00:10.2]} 43... Qb2 {[%clk 0:00:50]} 44. Rc8+ {[%clk 0:00:07.7]} 44...
Kh7 {[%clk 0:00:47.9]} 45. g5 {[%clk 0:00:07.1]} 45... Qxd4+ {[%clk 0:00:46.4]}
46. Bf2 {[%clk 0:00:04.9]} 46... Qxf4 {[%clk 0:00:45.2]} 47. Ng4 {[%clk
0:00:00.1]} 47... Bf5 {[%clk 0:00:36]} 0-1

[Event "Live Chess"]
[Site "Chess.com"]
[Date "2024.06.01"]
[Round "-"]
[White "cymbalshift"]
[Black "grillage"]
[Result "0-1"]
[WhiteElo "1679"]
[BlackElo "1872"]
[TimeControl "300"]
[EndTime "15:35:16 PDT"]
[Termination "grillage won on time"]

1. d4 {[%clk 0:04:57.6]} 1... e6 {[%clk 0:04:58.6]} 2. c4 {[%clk 0:04:54.7]}
2... Bb4+ {[%clk 0:04:57.1]} 3. Nc3 {[%clk 0:04:52.8]} 3... c5 {[%clk
0:04:55.2]} 4. d5 {[%clk 0:04:50.7]} 4... d6 {[%clk 0:04:49.3]} 5. g3 {[%clk
0:04:40.1]} 5... e5 {[%clk 0:04:47.9]} 6. Bg2 {[%clk 0:04:39.2]} 6... f5 {[%clk
0:04:41.8]} 7. Qc2 {[%clk 0:04:29.5]} 7... Nf6 {[%clk 0:04:37.9]} 8. Nf3 {[%clk
0:04:23.4]} 8... Ne4 {[%clk 0:04:33.5]} 9. O-O {[%clk 0:04:13.6]} 9... Bxc3
{[%clk 0:04:30.8]} 10. bxc3 {[%clk 0:04:05.5]} 10... O-O {[%clk 0:04:23.7]} 11.
Ne1 {[%clk 0:03:59.2]} 11... Nf6 {[%clk 0:04:20.8]} 12. Bg5 {[%clk 0:03:42.5]}
12... Qe8 {[%clk 0:04:16.3]} 13. Nf3 {[%clk 0:03:16.8]} 13... Nbd7 {[%clk
0:04:10.4]} 14. Nh4 {[%clk 0:02:39.6]} 14... g6 {[%clk 0:03:20.9]} 15. Bh6
{[%clk 0:02:08.6]} 15... Rf7 {[%clk 0:03:18.6]} 16. Nf3 {[%clk 0:02:05.8]} 16...
Nf8 {[%clk 0:03:13]} 17. Ng5 {[%clk 0:02:00.2]} 17... Rc7 {[%clk 0:03:11.6]} 18.
e4 {[%clk 0:01:51.4]} 18... Ng4 {[%clk 0:03:08.2]} 19. Bxf8 {[%clk 0:01:37.2]}
19... Qxf8 {[%clk 0:03:07]} 20. h3 {[%clk 0:01:30.2]} 20... Nf6 {[%clk
0:03:05.2]} 21. f4 {[%clk 0:01:25.6]} 21... Nxe4 {[%clk 0:02:50.9]} 22. Nxe4
{[%clk 0:01:17.1]} 22... fxe4 {[%clk 0:02:50]} 23. Bxe4 {[%clk 0:01:15.6]} 23...
Bxh3 {[%clk 0:02:47.7]} 24. Rf2 {[%clk 0:01:14.7]} 24... Bf5 {[%clk 0:02:43.7]}
25. fxe5 {[%clk 0:01:08.4]} 25... dxe5 {[%clk 0:02:31.4]} 26. g4 {[%clk
0:01:07]} 26... Rf7 {[%clk 0:02:10.2]} 27. gxf5 {[%clk 0:01:04.8]} 27... gxf5
{[%clk 0:02:09.5]} 28. Bxf5 {[%clk 0:00:48.1]} 28... Kh8 {[%clk 0:02:07.6]} 29.
Raf1 {[%clk 0:00:38.2]} 29... Qg8+ {[%clk 0:02:00.1]} 30. Rg2 {[%clk 0:00:33]}
30... Rg7 {[%clk 0:01:59.6]} 31. Rf2 {[%clk 0:00:24.1]} 31... Rf8 {[%clk
0:01:56.7]} 32. Qe4 {[%clk 0:00:13.7]} 32... Rg5 {[%clk 0:01:40.9]} 33. Qxe5+
{[%clk 0:00:09.8]} 33... Qg7 {[%clk 0:01:35.9]} 34. Qxg7+ {[%clk 0:00:08.3]}
34... Rxg7 {[%clk 0:01:35]} 35. Be6 {[%clk 0:00:04.8]} 35... Rxf2 {[%clk
0:01:25.3]} 36. Kxf2 {[%clk 0:00:02.8]} 36... Rxg2+ {[%clk 0:01:16.2]} 37. Kxg2
{[%clk 0:00:02.7]} 37... Kg7 {[%clk 0:01:15.6]} 38. d6 {[%clk 0:00:02.3]} 38...
Kf6 {[%clk 0:01:12.4]} 39. d7 {[%clk 0:00:00.4]} 39... Ke7 {[%clk 0:01:11.8]}
0-1

[Event "Live Chess"]
[Site "Chess.com"]
[Date "2024.06.01"]
[Round "-"]
[White "blunderabit"]
[Black "StoreySniper"]
[Result "0-1"]
[WhiteElo "1777"]
[BlackElo "2534"]
[TimeControl "300"]
[EndTime "15:35:16 PDT"]
[Termination "StoreySniper won by resignation"]

1. e4 {[%clk 0:04:56.7]} 1... g6 {[%clk 0:04:59]} 2. Nc3 {[%clk 0:04:51.9]} 2...
Bg7 {[%clk 0:04:58.7]} 3. d4 {[%clk 0:04:48.8]} 3... c5 {[%clk 0:04:58.1]} 4.
dxc5 {[%clk 0:04:47]} 4... Bxc3+ {[%clk 0:04:56.9]} 5. bxc3 {[%clk 0:04:45.1]}
5... Nf6 {[%clk 0:04:55.4]} 6. Bd3 {[%clk 0:04:42.5]} 6... Qa5 {[%clk
0:04:54.2]} 7. Ne2 {[%clk 0:04:39.5]} 7... Qxc5 {[%clk 0:04:52.9]} 8. Be3 {[%clk
0:04:37.2]} 8... Qc7 {[%clk 0:04:51.7]} 9. h3 {[%clk 0:04:35.8]} 9... d6 {[%clk
0:04:51]} 10. O-O {[%clk 0:04:31.6]} 10... Nbd7 {[%clk 0:04:50.6]} 11. f4 {[%clk
0:04:11.9]} 11... b6 {[%clk 0:04:46.5]} 12. f5 {[%clk 0:03:51]} 12... Bb7 {[%clk
0:04:43.4]} 13. Ng3 {[%clk 0:03:45.6]} 13... Qxc3 {[%clk 0:04:35.5]} 14. Rb1
{[%clk 0:03:36]} 14... Qe5 {[%clk 0:04:16.9]} 15. Rb5 {[%clk 0:03:29.2]} 15...
Qxg3 {[%clk 0:04:11.3]} 16. Rf3 {[%clk 0:03:13.1]} 16... Qh4 {[%clk 0:03:58.3]}
17. Bf2 {[%clk 0:03:06.3]} 17... Qh5 {[%clk 0:03:54.9]} 18. g4 {[%clk
0:03:03.7]} 18... Nxg4 {[%clk 0:03:50.6]} 19. hxg4 {[%clk 0:02:59.3]} 19...
Qxg4+ {[%clk 0:03:49.3]} 20. Kf1 {[%clk 0:02:52.8]} 20... Ne5 {[%clk 0:03:44]}
21. Rxe5 {[%clk 0:02:48]} 21... dxe5 {[%clk 0:03:42.3]} 22. Bb5+ {[%clk
0:02:45.4]} 22... Kf8 {[%clk 0:03:37.8]} 23. fxg6 {[%clk 0:02:37.8]} 23... Qxg6
{[%clk 0:03:35.6]} 24. Bc4 {[%clk 0:01:09.2]} 24... f6 {[%clk 0:03:23.1]} 25.
Bh4 {[%clk 0:00:51.4]} 25... Bxe4 {[%clk 0:03:13]} 26. Rxf6+ {[%clk 0:00:48.4]}
26... exf6 {[%clk 0:03:05]} 27. Qd6+ {[%clk 0:00:41.4]} 27... Kg7 {[%clk
0:03:04]} 28. Qd7+ {[%clk 0:00:13.7]} 28... Kh6 {[%clk 0:03:01.4]} 29. Qh3
{[%clk 0:00:07.9]} 29... Qf5+ {[%clk 0:03:00.4]} 30. Qxf5 {[%clk 0:00:04.6]}
30... Bxf5 {[%clk 0:03:00.3]} 0-1

[Event "Live Chess"]
[Site "Chess.com"]
[Date "2024.06.01"]
[Round "-"]
[White "NottheBishopSacrifice"]
[Black "oscalik"]
[Result "1-0"]
[WhiteElo "2299"]
[BlackElo "2303"]
[TimeControl "300"]
[EndTime "15:35:46 PDT"]
[Termination "NottheBishopSacrifice won on time"]

1. d4 {[%clk 0:04:54.4]} 1... d5 {[%clk 0:04:53.5]} 2. c4 {[%clk 0:04:40.1]}
2... e6 {[%clk 0:04:52]} 3. Nf3 {[%clk 0:04:37.7]} 3... Nf6 {[%clk 0:04:49.1]}
4. Bg5 {[%clk 0:04:36.5]} 4... Bb4+ {[%clk 0:04:46.9]} 5. Nbd2 {[%clk
0:04:34.9]} 5... dxc4 {[%clk 0:04:41.5]} 6. e3 {[%clk 0:04:32.2]} 6... b5 {[%clk
0:04:36.7]} 7. a4 {[%clk 0:04:30.5]} 7... c6 {[%clk 0:04:31.5]} 8. Ne5 {[%clk
0:04:28.4]} 8... Bb7 {[%clk 0:04:18.5]} 9. Be2 {[%clk 0:04:24.6]} 9... Nbd7
{[%clk 0:04:09.4]} 10. Nxd7 {[%clk 0:04:18.7]} 10... Qxd7 {[%clk 0:04:05.7]} 11.
Bxf6 {[%clk 0:04:17.7]} 11... gxf6 {[%clk 0:04:03.2]} 12. O-O {[%clk 0:04:15.9]}
12... Rg8 {[%clk 0:03:55.3]} 13. Bf3 {[%clk 0:04:14.6]} 13... c5 {[%clk
0:03:46.2]} 14. Bxb7 {[%clk 0:04:10.2]} 14... Qxb7 {[%clk 0:03:44.4]} 15. Qf3
{[%clk 0:04:05.5]} 15... O-O-O {[%clk 0:03:34.1]} 16. Ne4 {[%clk 0:03:56.7]}
16... f5 {[%clk 0:03:22.1]} 17. Ng3 {[%clk 0:03:54.7]} 17... Qxf3 {[%clk
0:03:13.3]} 18. gxf3 {[%clk 0:03:54.6]} 18... cxd4 {[%clk 0:03:10.5]} 19. axb5
{[%clk 0:03:54.2]} 19... f4 {[%clk 0:02:45.1]} 20. exf4 {[%clk 0:03:50.4]} 20...
Kb7 {[%clk 0:02:40.1]} 21. Ra4 {[%clk 0:03:47.2]} 21... Bc5 {[%clk 0:02:19.4]}
22. Rxc4 {[%clk 0:03:45.3]} 22... Kb6 {[%clk 0:02:15.3]} 23. b4 {[%clk
0:03:42.6]} 23... Be7 {[%clk 0:02:03.5]} 24. Rd1 {[%clk 0:03:40.3]} 24... h5
{[%clk 0:01:55]} 25. Kf1 {[%clk 0:03:38.8]} 25... h4 {[%clk 0:01:37.2]} 26. Ne4
{[%clk 0:03:37.1]} 26... h3 {[%clk 0:01:29.2]} 27. Ng3 {[%clk 0:03:31.5]} 27...
Bf6 {[%clk 0:01:22.6]} 28. f5 {[%clk 0:03:21.6]} 28... Kxb5 {[%clk 0:01:12.5]}
29. Rc7 {[%clk 0:03:19.6]} 29... d3 {[%clk 0:00:53.1]} 30. Rxf7 {[%clk
0:03:17.2]} 30... Bc3 {[%clk 0:00:37.1]} 31. fxe6 {[%clk 0:03:15.9]} 31... Rge8
{[%clk 0:00:30.7]} 32. e7 {[%clk 0:03:14]} 32... Rd7 {[%clk 0:00:21.8]} 33. Ne4
{[%clk 0:03:13.4]} 33... Kxb4 {[%clk 0:00:19.1]} 34. Rb1+ {[%clk 0:03:06.5]}
34... Kc4 {[%clk 0:00:18.2]} 35. Rc1 {[%clk 0:03:02.5]} 35... d2 {[%clk
0:00:16.2]} 36. Rxc3+ {[%clk 0:03:01.5]} 36... Kd4 {[%clk 0:00:14.9]} 37. Ke2
{[%clk 0:02:54]} 37... d1=Q+ {[%clk 0:00:08.7]} 38. Kxd1 {[%clk 0:02:52.5]}
38... Ke5+ {[%clk 0:00:04.6]} 39. Ke2 {[%clk 0:02:50.2]} 1-0